[Event "8th RTU Open 2018"]
[Site "Riga"]
[Date "2018.08.07"]
[Round "3"]
[White "Schekachikhin, Maksim"]
[Black "Chibukhchyan, Erik"]
[Result "0-1"]
[ECO "E21"]
[WhiteElo "2392"]
[BlackElo "2214"]
[Annotator "NA"]
[PlyCount "106"]
[EventDate "2018.08.06"]
[EventType "swiss"]
[EventCountry "LAT"]
[SourceTitle "playchess.com"]
[Source "ChessBase"]
[SourceQuality "1"]
[TimeControl "5400+30"]

1. d4 Nf6 2. c4 e6 3. Nf3 b6 4. Nc3 Bb4 5. e3 Bb7 6. Bd3 Ne4 7. Qc2 Bxc3+ 8. bxc3 f5 9. O-O O-O 10. Nd2 Nxd2 11. Bxd2 Nc6 12. Rab1 d6 13. f4 Na5 14. c5 d5 15. Qa4 Bc6 16. Qb4 Qd7 17. Rfc1 Nc4 18. Bxc4 dxc4 19. Qxc4 Be4 20. Rb2 Qc6 21. Qb5 Bxg2 22. Qxc6 Bxc6 23. cxb6 axb6 24. c4 Rf7 25. Bb4 Rd7 26. Kf2 Ra4 27. Rc3 Be4 28. Ke2 Kf7 29. Ra3 Rxa3 30. Bxa3 Rd8 31. Kd2 Ra8 32. Bb4 h6 33. h4 Kg6 34. Bc3 Kh5 35. d5 exd5 36. cxd5 g6 37. Be5 Bxd5 38. Bxc7 Kxh4 39. Rxb6 Rxa2+ 40. Kc3 Bf7 41. Rf6 Be8 42. Rf8 Ra8 43. Be5 Kg4 44. Rh8 h5 45. Bf6 Kf3 46. Bd4 Rc8+ 47. Kd2 Bd7 48. Rh6 Rc6 49. Rh7 Bc8 50. Rh6 Kg3 51. Ke1 h4 52. e4 h3 53. exf5 Bxf5 0-1

[Event "8th RTU Open 2018"]
[Site "Riga"]
[Date "2018.08.07"]
[Round "3"]
[White "Hansen, Mads"]
[Black "Nilssen, Ellen Fredericia"]
[Result "1-0"]
[ECO "C00"]
[WhiteElo "2387"]
[BlackElo "2060"]
[Annotator "NA"]
[PlyCount "73"]
[EventDate "2018.08.06"]
[EventType "swiss"]
[EventCountry "LAT"]
[SourceTitle "playchess.com"]
[Source "ChessBase"]
[SourceQuality "1"]
[TimeControl "5400+30"]

1. e4 {[%emt 0:00:00]} e6 {[%emt 0:00:00]} 2. d4 {[%emt 0:00:00]} d5 {[%emt 0:00:00]} 3. Bd3 {[%emt 0:00:00]} dxe4 {[%emt 0:03:47]} 4. Bxe4 {[%emt 0:00:00]} c5 {[%emt 0:02:16]} 5. Ne2 {[%emt 0:01:38]} Nf6 {[%emt 0:02:45]} 6. Bf3 {[%emt 0:00:05]} Be7 {[%emt 0:04:24]} 7. O-O {[%emt 0:05:21]} O-O {[%emt 0:04:59]} 8. c4 {[%emt 0:03:44]} cxd4 {[%emt 0:04:31]} 9. Nxd4 {[%emt 0:01:50]} Nbd7 {[%emt 0:02:00]} 10. Nc3 {[%emt 0:01:20]} Ne5 {[%emt 0:02:51]} 11. Be2 {[%emt 0:00:35]} a6 {[%emt 0:00:48]} 12. h3 {[%emt 0:19:09]} Ng6 {[%emt 0:07:24]} 13. Be3 {[%emt 0:03:34]} Qc7 {[%emt 0:07:22]} 14. Qb3 {[%emt 0:03:03]} Bd7 {[%emt 0:09:12]} 15. Rfd1 {[%emt 0:01:32]} Bc5 {[%emt 0:05:38]} 16. Bg5 {[%emt 0:07:01]} Ne8 {[%emt 0:05:19]} 17. Rac1 {[%emt 0:03:11]} Nd6 {[%emt 0:06:23]} 18. Be3 {[%emt 0:11:36]} Rad8 {[%emt 0:02:12]} 19. Bf1 {[%emt 0:04:41]} Ne5 {[%emt 0:03:15]} 20. Bf4 {[%emt 0:03:06]} Nc6 {[%emt 0:06:04]} 21. Nf3 {[%emt 0:02:06]} Na5 {[%emt 0:04:56]} 22. Qc2 {[%emt 0:00:13]} Qb6 {[%emt 0:00:40]} 23. a3 {[%emt 0:04:47]} Nb3 {[%emt 0:00:05]} 24. Bxd6 {[%emt 0:00:18]} Bxd6 {[%emt 0:00:06]} 25. Rxd6 {[%emt 0:00:15]} Qxd6 {[%emt 0:00:10]} 26. Qxb3 {[%emt 0:00:01]} Bc6 {[%emt 0:00:41]} 27. Be2 {[%emt 0:00:58]} h6 {[%emt 0:04:10]} 28. Qc2 {[%emt 0:03:32]} a5 {[%emt 0:02:07]} 29. Nd1 {[%emt 0:01:54]} Qf4 {[%emt 0:01:05]} 30. Ne3 {[%emt 0:00:09]} Rd7 {[%emt 0:01:27]} 31. Qc3 {[%emt 0:00:14]} Rfd8 {[%emt 0:01:27]} 32. Qxa5 {[%emt 0:05:16]} Be4 {[%emt 0:03:16]} 33. Re1 {[%emt 0:01:40]} Rc8 {[%emt 0:01:17]} 34. Qc3 {[%emt 0:01:46]} g5 {[%emt 0:01:53]} 35. b4 {[%emt 0:00:32]} f5 {[%emt 0:01:41]} 36. Qf6 {[%emt 0:00:16]} Rc6 {[%emt 0:01:01]} 37. Ne5 {[%emt 0:00:35]} 1-0

[Event "8th RTU Open 2018"]
[Site "Riga"]
[Date "2018.08.07"]
[Round "3"]
[White "Rostgaard, Tobias Valentin"]
[Black "Nair, Sanjeev"]
[Result "1-0"]
[ECO "D00"]
[WhiteElo "2386"]
[BlackElo "1942"]
[Annotator "NA"]
[PlyCount "85"]
[EventDate "2018.08.06"]
[EventType "swiss"]
[EventCountry "LAT"]
[SourceTitle "playchess.com"]
[Source "ChessBase"]
[SourceQuality "1"]
[TimeControl "5400+30"]

1. d4 {[%emt 0:00:00]} d5 {[%emt 0:00:08]} 2. Bf4 {[%emt 0:00:00]} Nf6 {[%emt 0:00:19]} 3. e3 {[%emt 0:00:00]} c5 {[%emt 0:00:23]} 4. Nf3 {[%emt 0:00:16]} Nc6 {[%emt 0:00:16]} 5. Nbd2 {[%emt 0:00:07]} Bf5 {[%emt 0:06:58]} 6. dxc5 {[%emt 0:00:11]} e6 {[%emt 0:03:02]} 7. Nb3 {[%emt 0:00:36]} Be7 {[%emt 0:02:00]} 8. Nfd4 {[%emt 0:01:45]} O-O {[%emt 0:16:00]} 9. Nxf5 {[%emt 0:06:24]} exf5 {[%emt 0:00:05]} 10. Bd3 {[%emt 0:00:51]} g6 {[%emt 0:00:18]} 11. O-O {[%emt 0:00:18]} Nd7 {[%emt 0:01:27]} 12. Qf3 {[%emt 0:03:25]} Nxc5 {[%emt 0:05:14]} 13. Nxc5 {[%emt 0:00:16]} Bxc5 {[%emt 0:00:06]} 14. c3 {[%emt 0:00:55]} Qd7 {[%emt 0:08:31]} 15. Rad1 {[%emt 0:00:23]} Qe6 {[%emt 0:00:17]} 16. Bc2 {[%emt 0:00:37]} Rfd8 {[%emt 0:00:33]} 17. Bb3 {[%emt 0:01:06]} Ne7 {[%emt 0:00:51]} 18. Bg5 {[%emt 0:00:27]} f6 {[%emt 0:01:21]} 19. Bh4 {[%emt 0:03:34]} Kg7 {[%emt 0:01:13]} 20. Rd2 {[%emt 0:00:29]} Rd7 {[%emt 0:06:35]} 21. Rfd1 {[%emt 0:00:20]} Rad8 {[%emt 0:00:09]} 22. Bg3 {[%emt 0:01:53]} a6 {[%emt 0:05:53]} 23. h3 {[%emt 0:05:52]} Ba7 {[%emt 0:08:35]} 24. c4 {[%emt 0:04:29]} dxc4 {[%emt 0:06:15]} 25. Bxc4 {[%emt 0:01:02]} Rxd2 {[%emt 0:05:58]} 26. Rxd2 {[%emt 0:00:20]} Qxc4 {[%emt 0:02:58]} 27. Rxd8 {[%emt 0:00:08]} Qc1+ {[%emt 0:01:26]} 28. Kh2 {[%emt 0:01:12]} Qxb2 {[%emt 0:03:33]} 29. Rd7 {[%emt 0:00:19]} Bc5 {[%emt 0:00:10]} 30. Qd5 {[%emt 0:01:02]} Qb4 {[%emt 0:02:04]} 31. Rxb7 {[%emt 0:01:45]} Qa3 {[%emt 0:00:30]} 32. Qd8 {[%emt 0:01:26]} g5 {[%emt 0:02:09]} 33. Rb8 {[%emt 0:01:17]} Ng6 {[%emt 0:01:13]} 34. Qg8+ {[%emt 0:00:18]} Kh6 {[%emt 0:00:04]} 35. Rb7 {[%emt 0:00:13]} Be7 {[%emt 0:00:43]} 36. Bc7 {[%emt 0:03:03]} Qc5 {[%emt 0:01:26]} 37. Qe6 {[%emt 0:03:34]} a5 {[%emt 0:07:10]} 38. Bb8 {[%emt 0:03:35]} a4 {[%emt 0:00:28]} 39. Rd7 {[%emt 0:00:45]} Qc8 {[%emt 0:01:42]} 40. Bd6 {[%emt 0:10:04]} Nf8 {[%emt 0:00:20]} 41. Qxe7 {[%emt 0:00:27]} Nxd7 {[%emt 0:00:17]} 42. h4 {[%emt 0:00:14]} gxh4 {[%emt 0:01:19]} 43. Qf7 {[%emt 0:00:29]} 1-0

[Event "8th RTU Open 2018"]
[Site "Riga"]
[Date "2018.08.07"]
[Round "3"]
[White "Nikitenko, Mihail"]
[Black "Kaczur, Florian"]
[Result "0-1"]
[ECO "C63"]
[WhiteElo "2374"]
[BlackElo "2482"]
[Annotator "RC"]
[PlyCount "108"]
[EventDate "2018.08.06"]
[EventType "swiss"]
[EventCountry "LAT"]
[SourceTitle "playchess.com"]
[Source "ChessBase"]
[SourceQuality "1"]
[TimeControl "5400+30"]

1. e4 {[%emt 0:00:00]} e5 {[%emt 0:00:00]} 2. Nf3 {[%emt 0:00:00]} Nc6 {[%emt 0:00:00]} 3. Bb5 {[%emt 0:00:00]} f5 {[%emt 0:01:31]} 4. d3 {[%emt 0:00:00]} fxe4 {[%emt 0:00:05]} 5. dxe4 {[%emt 0:00:00]} Nf6 {[%emt 0:00:09]} 6. Qd3 {[%emt 0:00:27]} d6 {[%emt 0:01:21]} 7. Nc3 {[%emt 0:02:15]} a6 {[%emt 0:08:18]} 8. Ba4 {[%emt 0:01:37]} b5 {[%emt 0:02:25]} 9. Bb3 {[%emt 0:00:06]} Na5 {[%emt 0:00:43]} 10. O-O {[%emt 0:08:59]} Nxb3 {[%emt 0:02:06]} 11. axb3 {[%emt 0:00:05]} c6 {[%emt 0:03:20]} 12. Ne2 {[%emt 0:11:38]} Be7 {[%emt 0:05:30]} 13. c4 {[%emt 0:02:27]} Bb7 {[%emt 0:07:25]} 14. Ng3 {[%emt 0:00:19]} O-O {[%emt 0:00:37]} 15. c5 {[%emt 0:11:24]} dxc5 {[%emt 0:11:45]} 16. Qc3 {[%emt 0:01:57]} Qc7 {[%emt 0:08:05]} 17. Be3 {[%emt 0:01:59]} Rae8 {[%emt 0:03:56]} 18. Bxc5 {[%emt 0:05:14]} Bxc5 {[%emt 0:00:43]} 19. Qxc5 {[%emt 0:00:04]} Nd7 {[%emt 0:00:27]} 20. Qe3 {[%emt 0:00:40]} c5 {[%emt 0:00:53]} 21. Rac1 {[%emt 0:02:30]} Rc8 {[%emt 0:01:20]} 22. Ng5 {[%emt 0:10:04]} Qc6 {[%emt 0:06:05]} 23. Rfd1 {[%emt 0:00:07]} Nb6 {[%emt 0:00:32]} 24. f3 {[%emt 0:01:18]} g6 {[%emt 0:02:20]} 25. Nh3 {[%emt 0:01:56]} c4 {[%emt 0:01:57]} 26. Nf2 {[%emt 0:01:42]} Qe6 {[%emt 0:05:02]} 27. Qh6 {[%emt 0:05:58]} Qe7 {[%emt 0:01:26]} 28. bxc4 {[%emt 0:05:13]} Nxc4 {[%emt 0:00:47]} 29. Rc2 {[%emt 0:00:05]} Rfd8 {[%emt 0:01:45]} 30. Rxd8+ {[%emt 0:01:39]} Rxd8 {[%emt 0:00:06]} 31. h4 {[%emt 0:00:26]} Nd6 {[%emt 0:03:00]} 32. Qg5 {[%emt 0:11:14]} Kf8 {[%emt 0:03:43]} 33. Ng4 {[%emt 0:02:01]} Nf7 {[%emt 0:00:28]} 34. Qxe7+ {[%emt 0:01:17]} Kxe7 {[%emt 0:00:03]} 35. Rc7+ {[%emt 0:00:37]} Rd7 {[%emt 0:00:05]} 36. Rxd7+ {[%emt 0:00:03]} Kxd7 {[%emt 0:00:07]} 37. Nf6+ {[%emt 0:00:04]} Ke7 {[%emt 0:00:17]} 38. Nxh7 {[%emt 0:00:15]} b4 {[%emt 0:00:40]} 39. Ne2 {[%emt 0:04:47]} a5 {[%emt 0:03:58]} 40. b3 {[%emt 0:00:13]} Bc8 {[%emt 0:01:04]} 41. Kf2 {[%emt 0:00:37]} Be6 {[%emt 0:00:26]} 42. Nc1 {[%emt 0:00:04]} Nd6 {[%emt 0:00:58]} 43. Ng5 {[%emt 0:02:02]} Bg8 {[%emt 0:02:23]} 44. g3 {[%emt 0:02:32]} Nb5 {[%emt 0:01:10]} 45. f4 {[%emt 0:00:25]} exf4 {[%emt 0:01:41]} 46. gxf4 {[%emt 0:00:17]} Nd4 {[%emt 0:00:05]} 47. Nf3 {[%emt 0:00:21]} Nxb3 {[%emt 0:00:34]} 48. Nxb3 {[%emt 0:00:16]} Bxb3 {[%emt 0:00:09]} 49. Nd4 {[%emt 0:00:12]} Ba4 {[%emt 0:00:50]} 50. Ke3 {[%emt 0:00:03]} b3 {[%emt 0:02:18]} 51. Nxb3 {[%emt 0:00:37]} Bxb3 {[%emt 0:00:13]} 52. Kd2 {[%emt 0:00:03]} Be6 {[%emt 0:00:34]} 53. Kc3 {[%emt 0:01:00]} Kf6 {[%emt 0:00:22]} 54. Kb2 {[%emt 0:00:27]} Bf5 {[%emt 0:00:43]} 0-1

[Event "8th RTU Open 2018"]
[Site "Riga"]
[Date "2018.08.07"]
[Round "3"]
[White "Hedman, Erik"]
[Black "Leenhouts, Koen"]
[Result "1-0"]
[ECO "E04"]
[WhiteElo "2370"]
[BlackElo "2475"]
[Annotator "ChessBase"]
[PlyCount "75"]
[EventDate "2018.08.06"]
[EventType "swiss"]
[EventCountry "LAT"]
[SourceTitle "playchess.com"]
[Source "ChessBase"]
[SourceQuality "1"]
[TimeControl "5400+30"]

1. d4 {[%emt 0:00:00]} Nf6 {[%emt 0:00:00]} 2. c4 {[%emt 0:00:00]} e6 {[%emt 0:00:00]} 3. Nf3 {[%emt 0:00:00]} d5 {[%emt 0:00:14]} 4. g3 {[%emt 0:00:12]} dxc4 {[%emt 0:00:09]} 5. Bg2 {[%emt 0:00:46]} a6 {[%emt 0:00:10]} 6. Ne5 {[%emt 0:04:11]} Bb4+ {[%emt 0:00:08]} 7. Nc3 {[%emt 0:00:23]} Nd5 {[%emt 0:00:12]} 8. O-O {[%emt 0:00:16]} Nxc3 {[%emt 0:05:32]} 9. bxc3 {[%emt 0:00:07]} Bxc3 {[%emt 0:01:33]} 10. Rb1 {[%emt 0:00:24]} Qxd4 {[%emt 0:15:05]} 11. Qa4+ {[%emt 0:08:21]} b5 {[%emt 0:19:29]} 12. Qa3 {[%emt 0:02:44]} Qxe5 {[%emt 0:03:54]} 13. Bxa8 {[%emt 0:21:20]} Qf6 {[%emt 0:05:37]} 14. Qc5 {[%emt 0:15:04]} Be5 {[%emt 0:16:19]} 15. a4 {[%emt 0:08:32]} Nd7 {[%emt 0:04:49]} 16. Qc6 {[%emt 0:05:53]} O-O {[%emt 0:01:39]} 17. axb5 {[%emt 0:04:36]} Nb6 {[%emt 0:00:57]} 18. Qe4 {[%emt 0:09:15]} Bd6 {[%emt 0:07:07]} 19. bxa6 {[%emt 0:02:06]} Bxa6 {[%emt 0:00:03]} 20. Bc6 {[%emt 0:06:11]} c3 {[%emt 0:01:49]} 21. Bb5 {[%emt 0:00:06]} Bxb5 {[%emt 0:01:27]} 22. Rxb5 {[%emt 0:00:06]} Nd5 {[%emt 0:00:14]} 23. Qc4 {[%emt 0:00:54]} h5 {[%emt 0:01:35]} 24. e4 {[%emt 0:00:35]} Nb6 {[%emt 0:00:50]} 25. Qc6 {[%emt 0:00:08]} Be5 {[%emt 0:01:49]} 26. h4 {[%emt 0:00:38]} Bd4 {[%emt 0:01:46]} 27. Kg2 {[%emt 0:01:11]} e5 {[%emt 0:02:18]} 28. Qxc7 {[%emt 0:00:16]} Ra8 {[%emt 0:01:08]} 29. Bg5 {[%emt 0:01:03]} Qe6 {[%emt 0:00:32]} 30. Rd1 {[%emt 0:01:12]} Ra2 {[%emt 0:02:20]} 31. Rxd4 {[%emt 0:00:25]} exd4 {[%emt 0:00:03]} 32. Re5 {[%emt 0:04:02]} Qb3 {[%emt 0:02:24]} 33. Be3 {[%emt 0:01:29]} Ra8 {[%emt 0:04:17]} 34. Bxd4 {[%emt 0:00:19]} Qc4 {[%emt 0:00:57]} 35. Bxb6 {[%emt 0:00:45]} Qe2 {[%emt 0:00:22]} 36. Qxc3 {[%emt 0:00:34]} f6 {[%emt 0:00:29]} 37. Re7 {[%emt 0:00:40]} Rb8 {[%emt 0:00:02]} 38. Qc7 {[%emt 0:00:38]} 1-0

[Event "8th RTU Open 2018"]
[Site "Riga"]
[Date "2018.08.07"]
[Round "3"]
[White "Oboladze, Luka"]
[Black "Kulaots, Kaido"]
[Result "1/2-1/2"]
[ECO "E91"]
[WhiteElo "2349"]
[BlackElo "2554"]
[Annotator "RC"]
[PlyCount "205"]
[EventDate "2018.08.06"]
[EventType "swiss"]
[EventCountry "LAT"]
[SourceTitle "playchess.com"]
[Source "ChessBase"]
[SourceQuality "1"]
[TimeControl "5400+30"]

1. d4 {[%emt 0:00:00]} Nf6 {[%emt 0:00:01]} 2. Nf3 {[%emt 0:00:00]} g6 {[%emt 0:01:19]} 3. c4 {[%emt 0:00:35]} Bg7 {[%emt 0:00:16]} 4. Nc3 {[%emt 0:00:07]} O-O {[%emt 0:00:47]} 5. e4 {[%emt 0:00:29]} d6 {[%emt 0:00:04]} 6. Be2 {[%emt 0:00:09]} Bg4 {[%emt 0:01:25]} 7. O-O {[%emt 0:01:36]} Nfd7 {[%emt 0:02:27]} 8. Be3 {[%emt 0:01:09]} c5 {[%emt 0:01:13]} 9. d5 {[%emt 0:01:57]} Nb6 {[%emt 0:13:33]} 10. Qb3 {[%emt 0:04:56]} e5 {[%emt 0:11:23]} 11. h3 {[%emt 0:08:10]} Bc8 {[%emt 0:03:16]} 12. Nd2 {[%emt 0:01:54]} f5 {[%emt 0:08:09]} 13. exf5 {[%emt 0:01:42]} gxf5 {[%emt 0:00:10]} 14. f4 {[%emt 0:00:09]} N8d7 {[%emt 0:02:18]} 15. Qc2 {[%emt 0:04:53]} exf4 {[%emt 0:02:07]} 16. Bxf4 {[%emt 0:00:43]} Ne5 {[%emt 0:00:07]} 17. Bd3 {[%emt 0:04:36]} Qf6 {[%emt 0:11:48]} 18. Rae1 {[%emt 0:04:33]} Bd7 {[%emt 0:05:28]} 19. Rf2 {[%emt 0:30:15]} Rae8 {[%emt 0:06:11]} 20. Ref1 {[%emt 0:00:36]} Nxd3 {[%emt 0:05:44]} 21. Qxd3 {[%emt 0:00:19]} Kh8 {[%emt 0:00:59]} 22. Nf3 {[%emt 0:04:51]} Re4 {[%emt 0:08:50]} 23. Bg5 {[%emt 0:07:57]} Rd4 {[%emt 0:03:39]} 24. Nxd4 {[%emt 0:02:49]} Qxd4 {[%emt 0:00:04]} 25. Qg3 {[%emt 0:05:08]} Nxc4 {[%emt 0:02:18]} 26. Kh1 {[%emt 0:03:34]} b5 {[%emt 0:02:05]} 27. Rf4 {[%emt 0:02:03]} Be5 {[%emt 0:01:37]} 28. Rxd4 {[%emt 0:02:34]} Bxg3 {[%emt 0:00:04]} 29. Rd3 {[%emt 0:00:22]} Be5 {[%emt 0:00:04]} 30. b3 {[%emt 0:00:49]} Nb6 {[%emt 0:01:26]} 31. Ne2 {[%emt 0:01:23]} b4 {[%emt 0:01:28]} 32. Rd2 {[%emt 0:00:46]} Bb5 {[%emt 0:01:31]} 33. Rf2 {[%emt 0:00:25]} Bxe2 {[%emt 0:03:02]} 34. Rfxe2 {[%emt 0:00:06]} Kg7 {[%emt 0:00:06]} 35. Be3 {[%emt 0:02:31]} Nd7 {[%emt 0:00:29]} 36. Rc2 {[%emt 0:01:33]} f4 {[%emt 0:00:37]} 37. Bf2 {[%emt 0:00:25]} Rf5 {[%emt 0:00:17]} 38. Rcd2 {[%emt 0:00:48]} Nf6 {[%emt 0:01:05]} 39. Bh4 {[%emt 0:01:30]} Nh5 {[%emt 0:00:21]} 40. Rd3 {[%emt 0:00:18]} Ng3+ {[%emt 0:01:25]} 41. Bxg3 {[%emt 0:00:17]} fxg3 {[%emt 0:00:04]} 42. Rf3 {[%emt 0:00:04]} Rxf3 {[%emt 0:01:01]} 43. gxf3 {[%emt 0:00:05]} Kf6 {[%emt 0:00:28]} 44. Kg2 {[%emt 0:00:10]} Kf5 {[%emt 0:00:13]} 45. Re4 {[%emt 0:00:08]} h5 {[%emt 0:00:24]} 46. h4 {[%emt 0:00:42]} a5 {[%emt 0:00:10]} 47. Re1 {[%emt 0:02:10]} Kf6 {[%emt 0:00:50]} 48. Kh3 {[%emt 0:00:17]} Kf5 {[%emt 0:00:48]} 49. Re2 {[%emt 0:00:27]} Kf6 {[%emt 0:00:20]} 50. Re4 {[%emt 0:00:16]} Kg6 {[%emt 0:00:16]} 51. Kg2 {[%emt 0:01:09]} Kf5 {[%emt 0:00:13]} 52. Rc4 {[%emt 0:00:39]} Bf4 {[%emt 0:00:52]} 53. Re4 {[%emt 0:00:34]} Be5 {[%emt 0:00:08]} 54. Re2 {[%emt 0:00:03]} Kf6 {[%emt 0:00:21]} 55. f4 {[%emt 0:01:10]} Bxf4 {[%emt 0:00:07]} 56. Re6+ {[%emt 0:00:04]} Kf5 {[%emt 0:01:20]} 57. Kf3 {[%emt 0:00:03]} Be5 {[%emt 0:00:07]} 58. Rh6 {[%emt 0:00:18]} Bf6 {[%emt 0:00:17]} 59. Kxg3 {[%emt 0:00:29]} c4 {[%emt 0:00:45]} 60. bxc4 {[%emt 0:00:55]} a4 {[%emt 0:00:11]} 61. Rxh5+ {[%emt 0:01:11]} Ke4 {[%emt 0:01:09]} 62. c5 {[%emt 0:00:35]} dxc5 {[%emt 0:01:03]} 63. d6 {[%emt 0:00:16]} c4 {[%emt 0:00:15]} 64. Rc5 {[%emt 0:00:25]} Kd4 {[%emt 0:00:14]} 65. Rf5 {[%emt 0:00:17]} Bd8 {[%emt 0:00:54]} 66. Rf8 {[%emt 0:00:05]} Bb6 {[%emt 0:00:06]} 67. Rb8 {[%emt 0:00:29]} Kc5 {[%emt 0:00:28]} 68. d7 {[%emt 0:00:30]} Bc7+ {[%emt 0:00:40]} 69. Kf3 {[%emt 0:00:27]} b3 {[%emt 0:00:33]} 70. axb3 {[%emt 0:00:20]} cxb3 {[%emt 0:00:05]} 71. Ke3 {[%emt 0:01:31]} Kc6 {[%emt 0:00:35]} 72. Rb4 {[%emt 0:00:34]} Kc5 {[%emt 0:00:50]} 73. Rb8 {[%emt 0:00:13]} Kc6 {[%emt 0:00:32]} 74. Kd3 {[%emt 0:00:12]} Kxd7 {[%emt 0:00:26]} 75. Rb4 {[%emt 0:00:09]} Ke6 {[%emt 0:00:51]} 76. Rxa4 {[%emt 0:00:08]} Kf5 {[%emt 0:00:38]} 77. Kc3 {[%emt 0:00:30]} Kg6 {[%emt 0:00:20]} 78. Rc4 {[%emt 0:01:37]} Bd8 {[%emt 0:00:13]} 79. Kxb3 {[%emt 0:00:37]} Kh5 {[%emt 0:00:06]} 80. Rc8 {[%emt 0:00:13]} Bxh4 {[%emt 0:00:07]} 81. Rg8 {[%emt 0:00:02]} Be7 {[%emt 0:00:25]} 82. Kc4 {[%emt 0:00:06]} Kh4 {[%emt 0:00:21]} 83. Kd4 {[%emt 0:00:05]} Kh3 {[%emt 0:00:16]} 84. Ke3 {[%emt 0:00:21]} Kh2 {[%emt 0:00:20]} 85. Kf2 {[%emt 0:00:11]} Bc5+ {[%emt 0:00:09]} 86. Kf3 {[%emt 0:00:12]} Kh1 {[%emt 0:00:56]} 87. Rh8+ {[%emt 0:00:16]} Kg1 {[%emt 0:00:05]} 88. Rc8 {[%emt 0:00:03]} Bd4 {[%emt 0:00:23]} 89. Rc4 {[%emt 0:00:17]} Be5 {[%emt 0:00:43]} 90. Rg4+ {[%emt 0:00:25]} Kh1 {[%emt 0:00:26]} 91. Re4 {[%emt 0:01:39]} Bd6 {[%emt 0:00:21]} 92. Re1+ {[%emt 0:00:13]} Kh2 {[%emt 0:00:05]} 93. Re6 {[%emt 0:00:11]} Bc5 {[%emt 0:00:19]} 94. Rh6+ {[%emt 0:00:07]} Kg1 {[%emt 0:00:05]} 95. Rh5 {[%emt 0:00:46]} Bb6 {[%emt 0:00:10]} 96. Rh6 {[%emt 0:00:23]} Bc5 {[%emt 0:00:06]} 97. Rc6 {[%emt 0:00:42]} Bd4 {[%emt 0:00:09]} 98. Rc4 {[%emt 0:00:09]} Be5 {[%emt 0:00:13]} 99. Re4 {[%emt 0:00:16]} Bd6 {[%emt 0:00:09]} 100. Rh4 {[%emt 0:00:05]} Bc7 {[%emt 0:00:24]} 101. Rh7 {[%emt 0:00:12]} Bd6 {[%emt 0:00:10]} 102. Rh5 {[%emt 0:00:16]} Bc7 {[%emt 0:00:11]} 103. Rc5 1/2-1/2

[Event "8th RTU Open 2018"]
[Site "Riga"]
[Date "2018.08.07"]
[Round "3"]
[White "Dhulipalla, Bala Chandra Prasad"]
[Black "Repka, Christopher"]
[Result "0-1"]
[ECO "A62"]
[WhiteElo "2333"]
[BlackElo "2528"]
[Annotator "ChessBase"]
[PlyCount "106"]
[EventDate "2018.08.06"]
[EventType "swiss"]
[EventCountry "LAT"]
[SourceTitle "playchess.com"]
[Source "ChessBase"]
[SourceQuality "1"]
[TimeControl "5400+30"]

1. d4 Nf6 {[%emt 0:05:22]} 2. c4 {[%emt 0:00:00]} e6 {[%emt 0:00:50]} 3. g3 {[%emt 0:00:00]} c5 {[%emt 0:00:05]} 4. d5 {[%emt 0:00:29]} exd5 {[%emt 0:00:04]} 5. cxd5 {[%emt 0:00:05]} d6 {[%emt 0:00:03]} 6. Nc3 {[%emt 0:00:08]} g6 {[%emt 0:00:03]} 7. Bg2 {[%emt 0:00:09]} Bg7 {[%emt 0:00:05]} 8. Nf3 {[%emt 0:00:05]} O-O {[%emt 0:00:04]} 9. O-O {[%emt 0:00:04]} Re8 {[%emt 0:00:05]} 10. Bf4 {[%emt 0:00:04]} Na6 {[%emt 0:00:08]} 11. Re1 {[%emt 0:01:23]} Bf5 {[%emt 0:09:51]} 12. Nd2 {[%emt 0:02:03]} Nh5 {[%emt 0:10:39]} 13. e4 {[%emt 0:01:31]} Nxf4 {[%emt 0:00:26]} 14. gxf4 {[%emt 0:00:12]} Bd7 {[%emt 0:02:49]} 15. Nc4 {[%emt 0:01:03]} Qh4 {[%emt 0:30:30]} 16. Qf3 {[%emt 0:12:52]} Bf8 {[%emt 0:08:51]} 17. e5 {[%emt 0:06:03]} Bf5 {[%emt 0:00:29]} 18. Ne4 {[%emt 0:07:53]} Bxe4 {[%emt 0:00:08]} 19. Rxe4 {[%emt 0:00:23]} f5 {[%emt 0:00:03]} 20. Ree1 {[%emt 0:12:04]} dxe5 {[%emt 0:00:13]} 21. d6 {[%emt 0:01:00]} e4 {[%emt 0:04:04]} 22. Qb3 {[%emt 0:01:41]} Kh8 {[%emt 0:06:05]} 23. Ne5 {[%emt 0:24:14]} Nb4 {[%emt 0:08:01]} 24. a3 {[%emt 0:17:39]} Rxe5 {[%emt 0:04:36]} 25. fxe5 {[%emt 0:00:50]} Nd3 {[%emt 0:00:03]} 26. Red1 {[%emt 0:00:47]} Qxf2+ {[%emt 0:03:59]} 27. Kh1 {[%emt 0:00:02]} Qd4 {[%emt 0:02:26]} 28. Rd2 {[%emt 0:03:57]} Qxe5 {[%emt 0:00:34]} 29. Bf1 {[%emt 0:01:23]} Rd8 {[%emt 0:02:27]} 30. Bxd3 {[%emt 0:00:51]} exd3 {[%emt 0:00:09]} 31. Qxd3 {[%emt 0:00:42]} Rxd6 {[%emt 0:00:04]} 32. Qe2 {[%emt 0:00:46]} Qxe2 {[%emt 0:00:13]} 33. Rxe2 {[%emt 0:00:01]} Kg7 {[%emt 0:00:08]} 34. Rc1 {[%emt 0:01:20]} Kf7 {[%emt 0:00:17]} 35. b4 {[%emt 0:01:14]} Rc6 {[%emt 0:01:00]} 36. Rd1 {[%emt 0:01:57]} Rc7 {[%emt 0:00:14]} 37. Rc1 {[%emt 0:01:15]} c4 {[%emt 0:00:14]} 38. Re5 {[%emt 0:01:41]} Bg7 {[%emt 0:00:35]} 39. Re2 {[%emt 0:00:58]} c3 {[%emt 0:01:35]} 40. Rcc2 {[%emt 0:00:38]} Bh6 {[%emt 0:00:33]} 41. Kg2 {[%emt 0:00:10]} Rc6 {[%emt 0:00:17]} 42. Re5 {[%emt 0:00:30]} Bd2 {[%emt 0:00:09]} 43. Kf3 {[%emt 0:00:20]} Kf6 {[%emt 0:00:59]} 44. Rd5 {[%emt 0:00:32]} g5 {[%emt 0:00:11]} 45. Rd7 {[%emt 0:00:15]} g4+ {[%emt 0:00:05]} 46. Kf2 {[%emt 0:00:30]} h5 {[%emt 0:01:20]} 47. Rxb7 {[%emt 0:00:09]} Re6 {[%emt 0:00:14]} 48. b5 {[%emt 0:01:09]} h4 {[%emt 0:00:38]} 49. Rc7 {[%emt 0:00:24]} Kg5 {[%emt 0:00:41]} 50. a4 {[%emt 0:00:58]} Re5 {[%emt 0:01:02]} 51. R7xc3 {[%emt 0:00:33]} Bxc3 {[%emt 0:00:15]} 52. Rxc3 {[%emt 0:00:02]} Re4 {[%emt 0:00:08]} 53. Ra3 {[%emt 0:00:19]} Rb4 {[%emt 0:00:30]} 0-1